Cogmind - Beta 16.1 @@@ ROGUE MODE // 2026.04.10 @ 06:00:46 Player: OniAn Result: Destroyed by Y-45 Defender with Beam Rifle Performance ------------- Evolutions (2) 1000 Regions Visited (6) 1200 Robots Destroyed (35) 175 Value Destroyed (946) 946 Prototype IDs (2) 40 Alien Tech Used (0) 0 Bonus (200) 200 TOTAL SCORE: 3561 Bonus ------- Entered Garrisons 200 Cogmind --------- Core Integrity 0/550 Matter 32/300 Energy 100/100 System Corruption 0% Temperature Cool (9) Movement Core (150) Ox2 Location -8/Garrison Parts ------- > --- POWER (2) -------- (None) > --- PROPULSION (2) --- (None) > --- UTILITY (5) ------ Small Storage Unit Visual Processing Unit Terrain Scan Processor > --- WEAPON (2) ------- Mini Grenade Launcher Mini Grenade Launcher > --- INVENTORY (8) ---- Light Treads Light Treads Datajack Datajack Peak State ------------ > --- POWER ------------ Light Deuterium Engine > --- PROPULSION ------- Compact Wheel Compact Wheel > --- UTILITY ---------- Small Storage Unit Visual Processing Unit Terrain Scanner Terrain Scan Processor > --- WEAPON ----------- Grenade Launcher Mini Grenade Launcher > --- INVENTORY -------- Light Treads Light Treads Mini Grenade Launcher Mini Grenade Launcher Datajack Datajack [Rating: 14] Favorites ----------- Power Ion Engine Engine Ion Engine Power Core Light Nuclear Core Propulsion Light Treads Treads Light Treads Wheel Compact Wheel Utility Small Storage Unit Device Terrain Scanner Storage Small Storage Unit Processor Visual Processing Unit Protection Light Armor Plating Weapon Medium Laser Energy Gun Medium Laser Launcher Mini Grenade Launcher Build | -11 -10 -10 -9 -9 -8 -8 ------- Run | Yrd Mat Min Mat Min Mat Gar Slots Evolved 4 | . . . 2 . 2 . Power 1 | . . . . . 1 . Propulsion . | . . . . . . . Utility 3 | . . . 2 . 1 . Weapon . | . . . . . . . Parts Attached 30 | 6 5 . 7 9 . 3 Power 5 | 1 1 . 1 1 . 1 Engine 4 | 1 1 . 1 1 . . Core 1 | . . . . . . 1 Reactor . | . . . . . . . Propulsion 8 | 2 . . 3 3 . . Treads 5 | 2 . . 3 . . . Leg . | . . . . . . . Wheel 3 | . . . . 3 . . Hover . | . . . . . . . Flight . | . . . . . . . Utility 8 | 1 2 . 2 3 . . Device 2 | . . . 1 1 . . Storage 2 | 1 . . . 1 . . Processor 3 | . 2 . . 1 . . Hackware . | . . . . . . . Protection 1 | . . . 1 . . . Artifact . | . . . . . . . Weapon 9 | 2 2 . 1 2 . 2 Energy Gun 5 | 2 2 . 1 . . . Energy Cannon . | . . . . . . . Ballistic Gun . | . . . . . . . Ballistic Cannon . | . . . . . . . Launcher 4 | . . . . 2 . 2 Special Weapon . | . . . . . . . Impact Weapon . | . . . . . . . Slashing Weapon . | . . . . . . . Piercing Weapon . | . . . . . . . Special Melee Weapon . | . . . . . . . Unidentified Prototypes . | . . . . . . . Parts Lost 15 | . . . 1 7 . 7 Power 3 | . . . . 1 . 2 Propulsion 4 | . . . . 2 . 2 Utility 3 | . . . . 2 . 1 Weapon 5 | . . . 1 2 . 2 Highest Loss Streak 5 | . . . 1 5 . 4 To Critical Strikes . | . . . . . . . Average Backups 6 | . 4 7 7 7 6 5 Power . | . 1 1 . . . . Propulsion 2 | . 2 3 2 2 2 2 Utility . | . . . . . . . Weapon 2 | . 1 2 3 3 2 1 Tool/Special . | . . . . . . . Unused Backups 7 | . 2 . 1 . . 4 Power . | . . . . . . . Propulsion 4 | . 1 . 1 . . 2 Utility 1 | . 1 . . . . . Weapon . | . . . . . . . Tool/Special 2 | . . . . . . 2 Average Slot Usage (%) 88 | . 99 100 92 84 81 69 Engine 9 | . 14 14 11 7 9 4 Treads 18 | . 28 28 22 13 . . Wheel 3 | . . . . 8 18 9 Device 5 | . . . 9 5 9 8 Storage 11 | . 14 14 11 11 9 9 Processor 14 | . 13 14 11 16 18 18 Protection 1 | . . . 5 . . . Energy Gun 18 | . 28 28 22 13 . . Launcher 4 | . . . . 7 18 18 Peak Build Rating 14 | 6 8 8 12 14 14 14 Average Rating 9 | 4 7 8 10 10 14 12 On Entrance 8 | . 6 8 8 12 14 14 Avg Prop Armor Cover (%) . | . . . . . . . Naked Turns . | . . . . . . . Heaviest Build 18 | 11 14 14 18 15 15 15 Greatest Support 40 | 40 40 40 40 40 32 32 Greatest Overweight (x) 4 | . . . . 2 . 4 Average Overweight (x) . | . . . . . . 1 Largest Inventory Capacity 8 | 8 8 8 8 8 8 8 Average Capacity 7 | 6 8 8 8 8 8 8 Most Carried 8 | 1 8 7 8 8 6 6 Average Carried 6 | . 4 7 7 7 6 5 Final Capacity 8 | 8 8 8 8 8 8 8 Final Carried 8 | 1 7 7 8 6 6 4 Class Distribution -------------------- 40% | Mutant 30% | Scavenger-Mutant 28% | Scavenger-Skirmisher Dominant Class ---------------- Mutant | -10/Materials Mutant | -10/Mines Scavenger-Mutant | -9/Materials Scavenger-Skirmisher | -9/Mines Scavenger-Skirmisher | -8/Materials Scavenger-Skirmisher | -8/Garrison Resources | -11 -10 -10 -9 -9 -8 -8 ----------- Run | Yrd Mat Min Mat Min Mat Gar Matter Collected 521 | 255 55 . 70 135 . 6 Remotely . | . . . . . . . Salvage Created 1060 | . 238 . 544 101 . 177 Parts 81 | . 20 . 41 8 . 12 Haulers Intercepted . | . . . . . . . Recyclers Shooed . | . . . . . . . Parts Field Recycled . | . . . . . . . Retrieved Matter . | . . . . . . . Parts Self-Destructed . | . . . . . . . Prevented . | . . . . . . . Parts Restored . | . . . . . . . Kills | -11 -10 -10 -9 -9 -8 -8 ------- Run | Yrd Mat Min Mat Min Mat Gar Combat Hostiles Destroyed 40 | . 7 . 14 12 . 7 Guns 24 | . 4 . 14 6 . . AOE 16 | . 3 . . 6 . 7 Classes Destroyed 10 | . 3 . 3 1 . 3 Recycler 1 | . . . 1 . . . Operator 1 | . . . 1 . . . Watcher 1 | . 1 . . . . . Swarmer 14 | . 3 . 7 4 . . Grunt 9 | . 4 . 3 . . 2 Protector 1 | . . . . . . 1 Sentry 5 | . . . 4 . . 1 Demolisher 1 | . . . . . . 1 Hunter 2 | . . . . . . 2 Assembled 8 | . . . . 8 . . Best Kill Streak 6 | . 3 . 5 6 . 4 Combat Bots Only 6 | . 3 . 5 6 . 4 Max Kills in Single Turn 3 | . 3 . 2 3 . 2 Gunslinging 1 | . . . . 1 . . Exploded 3 | . 3 . . 3 . 2 Melee . | . . . . . . . Uniques/NPCs Destroyed . | . . . . . . . Combat | -11 -10 -10 -9 -9 -8 -8 -------- Run | Yrd Mat Min Mat Min Mat Gar Hostile Shots Fired 207 | . 36 . 60 55 . 56 Missed 55 | . 8 . 18 15 . 14 Hits 152 | . 28 . 42 40 . 42 Melee 3 | . . . . 3 . . Projectile 149 | . 28 . 42 37 . 42 AOE 9 | . . . . . . 9 Critical Strikes 3 | . . . . . . 3 Damage Taken 2220 | . 346 . 332 604 . 938 Core 786 | . 59 . 35 135 . 557 Absorbed by Shields 142 | . . . 130 12 . . Core Remaining (%) 77 | 100 . 76 . 57 . . Volleys Fired 87 | . 21 . 35 16 . 15 Largest 2 | . 2 . 2 2 . 2 Hottest 90 | . 80 . 90 90 . 60 Shots Fired 172 | . 42 . 70 30 . 30 Gun 136 | . 42 . 70 24 . . Cannon . | . . . . . . . Launcher 36 | . . . . 6 . 30 Special . | . . . . . . . Kinetic . | . . . . . . . Thermal 99 | . 21 . 54 24 . . Explosive 36 | . . . . 6 . 30 Electromagnetic 37 | . 21 . 16 . . . Robot Hit Streak 14 | . 8 . 14 5 . 8 Robot Miss Streak 3 | . 3 . 3 3 . 1 Penetration Max . | . . . . . . . Secondary Targets 5 | . 1 . 1 3 . . Max Gunslinging Chain 1 | . 1 . 1 1 . . Shots Hit Robots 108 | . 26 . 48 16 . 18 Core Hits 82 | . 12 . 24 20 . 26 Critical Kills . | . . . . . . . Critical Parts Destroyed . | . . . . . . . Critical Strikes 5 | . . . 3 2 . . Burn 5 | . . . 3 2 . . Melee Attacks . | . . . . . . . Impact . | . . . . . . . Slashing . | . . . . . . . Piercing . | . . . . . . . Sneak Attacks . | . . . . . . . Combat Hostiles . | . . . . . . . Follow-up Attacks . | . . . . . . . Damage Inflicted 2158 | . 432 . 611 444 . 671 Guns 1100 | . 334 . 611 155 . . Cannons . | . . . . . . . Explosions 1051 | . 98 . . 289 . 664 Melee . | . . . . . . . Ramming 7 | . . . . . . 7 Kinetic . | . . . . . . . Thermal 879 | . 220 . 504 155 . . Explosive 953 | . . . . 289 . 664 Electromagnetic 319 | . 212 . 107 . . . Impact . | . . . . . . . Slashing . | . . . . . . . Piercing . | . . . . . . . Highest Corruption . | . . . . . . . Average Corruption . | . . . . . . . Corruption Purged . | . . . . . . . Corruption Blocked . | . . . . . . . Overload Shots . | . . . . . . . Overflow Damage 11 | . . . . 11 . . Projectiles . | . . . . . . . Explosions 11 | . . . . 11 . . Melee . | . . . . . . . Knockbacks . | . . . . . . . Impact . | . . . . . . . Kinetic . | . . . . . . . Secondary . | . . . . . . . Self-Inflicted Damage 156 | . 28 . . 69 . 59 Shots 10 | . 1 . . 3 . 6 Rammed 6 | . . . . . . 6 Targets Rammed 6 | . . . . . . 6 Kicked . | . . . . . . . Crushed . | . . . . . . . Highest Temperature 209 | . 145 . 209 108 . 46 Average Temperature 59 | . 46 . 72 46 . 24 Received Heat Transfer 473 | . 120 . 106 40 . 207 Siege Activations . | . . . . . . . Martial Activations . | . . . . . . . Shielding Activations . | . . . . . . . Robots Disrupted . | . . . . . . . Combat Hostiles . | . . . . . . . Robots Corrupted . | . . . . . . . Combat Hostiles . | . . . . . . . Parts Fried 1 | . . . 1 . . . Impact Corruptions . | . . . . . . . Robots Melted . | . . . . . . . Combat Hostiles . | . . . . . . . Parts Melted 5 | . . . 4 1 . . Heat Transferred 2502 | . 325 . 1608 569 . . Parts Sabotaged . | . . . . . . . Parts Stolen . | . . . . . . . Parts Stripped . | . . . . . . . Power Chain Reactions 1 | . 1 . . . . . Alert | -11 -10 -10 -9 -9 -8 -8 ------- Run | Yrd Mat Min Mat Min Mat Gar Maximum Alert Level 1 | . . . . . . 1 Low Security (%) 99 | 100 100 100 100 100 100 96 Level 1 . | . . . . . . 3 Level 2 . | . . . . . . . Level 3 . | . . . . . . . Level 4 . | . . . . . . . Level 5 . | . . . . . . . High Security . | . . . . . . . Max Security . | . . . . . . . Peak Influence 225 | . 76 3 120 90 . 225 Initial 17 | . . 3 . 17 . . Average 25 | . 21 . 39 6 . 87 Influence Increases 964 | . 188 . 385 126 . 265 Destroy 0b10 Robot/C 620 | . 140 . 280 80 . 120 Destroy 0b10 Robot/NC 20 | . 5 . 10 . . 5 Destroy Leader 132 | . 32 . 70 10 . 20 Successful Hack 35 | . 10 . 25 . . . Disable Machine 15 | . . . . . . 15 Destroy Structure 142 | . 1 . . 36 . 105 Influence Decreases 769 | . 178 10 339 172 . 70 Entered New Map 36 | . . 7 . 29 . . Time Decay 636 | . 178 3 329 126 . . Lost Part 97 | . . . 10 17 . 70 Squads Dispatched 2 | . 1 . 1 . . . Investigation 1 | . . . 1 . . . Extermination . | . . . . . . . Reinforcement 1 | . 1 . . . . . Assault . | . . . . . . . Garrison . | . . . . . . . Intercept . | . . . . . . . Searches Triggered . | . . . . . . . Construction Impeded . | . . . . . . . Haulers Reinforced . | . . . . . . . Active Scanning Responses . | . . . . . . . Cargo Convoy Interrupts . | . . . . . . . Stealth | -11 -10 -10 -9 -9 -8 -8 --------- Run | Yrd Mat Min Mat Min Mat Gar Distress Signals 3 | . . . 3 . . . Communications Jammed . | . . . . . . . Distress Signals . | . . . . . . . Times Spotted 56 | . 12 . 19 17 . 8 Peak Tracking Total 5 | . 4 . 5 5 . 3 Tactical Retreats 2 | . . . . 2 . . Traps | -11 -10 -10 -9 -9 -8 -8 ------- Run | Yrd Mat Min Mat Min Mat Gar Traps Triggered 10 | . 1 . . . . 9 Indirectly . | . . . . . . . Trap Hack Attempts . | . . . . . . . Triggered . | . . . . . . . Disarmed . | . . . . . . . Reprogrammed . | . . . . . . . Reused . | . . . . . . . Traps Extracted . | . . . . . . . Installed . | . . . . . . . Triggered . | . . . . . . . Machines | -11 -10 -10 -9 -9 -8 -8 ---------- Run | Yrd Mat Min Mat Min Mat Gar Machines Disabled 1 | . . . . . . 1 Max in Single Turn 1 | . . . . . . 1 Machines Repaired . | . . . . . . . Machines Dismantled . | . . . . . . . Machines Sabotaged . | . . . . . . . Overloaded Fab Kills . | . . . . . . . Hacking | -11 -10 -10 -9 -9 -8 -8 --------- Run | Yrd Mat Min Mat Min Mat Gar Machines Accessed 11 | . 4 . 6 . 1 . Terminals 8 | . 4 . 4 . . . Fabricators . | . . . . . . . Repair Stations . | . . . . . . . Recycling Units 1 | . . . 1 . . . Scanalyzers 1 | . . . 1 . . . Garrison Access 1 | . . . . . 1 . Total Hacks 27 | . 10 . 16 . 1 . Successful 13 | . 3 . 9 . 1 . Failed 14 | . 7 . 7 . . . Catastrophic 2 | . 1 . 1 . . . Database Lockouts . | . . . . . . . Manual 21 | . 10 . 11 . . . Terminals 21 | . 10 . 11 . . . Fabricators . | . . . . . . . Repair Stations . | . . . . . . . Recycling Units 1 | . . . 1 . . . Scanalyzers 4 | . . . 4 . . . Garrison Access 1 | . . . . . 1 . Terminal Hacks 4 | . 2 . 2 . . . Prototype ID Bank 1 | . 1 . . . . . Branch Access Points 1 | . . . 1 . . . Terminal Index 2 | . 1 . 1 . . . Fabricator Hacks . | . . . . . . . Repair Station Hacks . | . . . . . . . Recycling Unit Hacks . | . . . . . . . Scanalyzer 4 | . . . 4 . . . Retrieve Study 4 | . . . 4 . . . Garrison Access Hacks 1 | . . . . . 1 . Unlock Access 1 | . . . . . 1 . Unauthorized Hacks 4 | . 1 . 3 . . . Terminals 3 | . 1 . 2 . . . Botnet 3 | . 1 . 2 . . . Fabricators . | . . . . . . . Repair Stations . | . . . . . . . Recycling Units 1 | . . . 1 . . . Mask 1 | . . . 1 . . . Scanalyzers . | . . . . . . . Garrison Access . | . . . . . . . Data Cores Recovered 1 | . . . 1 . . . Used . | . . . . . . . Hacking Detections 9 | . 4 . 5 . . . Full Trace Events 1 | . . . 1 . . . Feedback Events . | . . . . . . . Feedback Blocked . | . . . . . . . Robot Schematics Acquired . | . . . . . . . Robots Built . | . . . . . . . Authchips . | . . . . . . . Time . | . . . . . . . Total Robot Build Rating . | . . . . . . . Part Schematics Acquired . | . . . . . . . Parts Built . | . . . . . . . Authchips . | . . . . . . . Time . | . . . . . . . Total Part Build Rating . | . . . . . . . Part Studies Acquired 4 | . . . 4 . . . Parts Repaired . | . . . . . . . Time . | . . . . . . . Parts Recycled . | . . . . . . . Recycled Matter . | . . . . . . . Retrieved Matter . | . . . . . . . Retrieved Components . | . . . . . . . Parts Scanalyzed . | . . . . . . . Part Schematics Acquired . | . . . . . . . Parts Damaged . | . . . . . . . Bothacking | -11 -10 -10 -9 -9 -8 -8 ------------ Run | Yrd Mat Min Mat Min Mat Gar Used RIF Installer . | . . . . . . . Robots Hacked . | . . . . . . . Non-combat . | . . . . . . . Combat . | . . . . . . . Robot Hacks Applied . | . . . . . . . Relay Couplers Released . | . . . . . . . Fabnet Peak Effective % . | . . . . . . . Robots Rewired . | . . . . . . . Allies Hacked . | . . . . . . . Hacks Repelled . | . . . . . . . Allies | -11 -10 -10 -9 -9 -8 -8 -------- Run | Yrd Mat Min Mat Min Mat Gar Total Allies 1 | . . . . 1 . . Largest Group 1 | . . . . 1 . . Highest-Rated Group 31 | . . . . 31 . . Highest-Rated Ally 31 | . . . . 31 . . Total Orders . | . . . . . . . Ally Attacks 3 | . . . . 3 . . Total Damage 43 | . . . . 43 . . Kills 2 | . . . . 2 . . Allies Corrupted . | . . . . . . . Allies Melted . | . . . . . . . Intel | -11 -10 -10 -9 -9 -8 -8 ------- Run | Yrd Mat Min Mat Min Mat Gar Active Infowar (turns) 3355 | . 203 344 1079 1293 29 407 Optics 3355 | . 203 344 1079 1293 29 407 Terrain 1096 | . . . . 681 29 386 Robot Analysis Total . | . . . . . . . Derelict Logs Recovered 2 | . . 1 . 1 . . Drone Launches . | . . . . . . . Drone Recoveries . | . . . . . . . Exploration | -11 -10 -10 -9 -9 -8 -8 ------------- Run | Yrd Mat Min Mat Min Mat Gar Turns Passed 3867 | 97 616 344 1079 1293 29 409 Spaces Moved 2257 | 75 329 216 555 823 30 229 Core 99 | 29 . . . 10 . 60 Treads 1504 | 46 329 216 555 358 . . Legs . | . . . . . . . Wheels 654 | . . . . 455 30 169 Hover . | . . . . . . . Flight . | . . . . . . . Fastest Speed 50 | 50 160 160 160 80 100 100 Average Speed 141 | 117 160 160 160 126 100 121 Slowest Speed 250 | 160 160 160 160 160 100 250 Overloaded Moves . | . . . . . . . Propulsion Burnouts . | . . . . . . . Robots Hopped . | . . . . . . . Potential Cave-ins . | . . . . . . . Cave-ins Triggered . | . . . . . . . Exploration Rate (%) 42 | 4 56 48 43 99 8 37 Regions Visited 6 Branch Regions 2 Pre-discovered Areas . | . . . . . . . Known Exits Taken 2 | . . . 1 . 1 . Unknown Exits Taken 4 | 1 1 1 . 1 . . Scrap Searched 2 | . . 1 . 1 . . Spaces Dug . | . . . . . . . Terrain Destroyed 130 | . 1 . . 51 . 78 Melee . | . . . . . . . Projectile . | . . . . . . . AOE 130 | . 1 . . 51 . 78 Terrain Rammed . | . . . . . . . Walls Destroyed . | . . . . . . . Machines Disabled . | . . . . . . . Actions | -11 -10 -10 -9 -9 -8 -8 --------- Run | Yrd Mat Min Mat Min Mat Gar Total 2748 | 81 378 215 678 1042 29 325 Wait 281 | . 12 . 70 192 . 7 Move 2251 | 74 328 215 554 822 29 229 Hop . | . . . . . . . Pick Up 13 | 1 7 . 5 . . . Fast Attach 18 | 6 2 . 2 7 . 1 Attach 5 | . . . 1 2 . 2 Detach 2 | . 1 . . 1 . . Swap 8 | . 3 . 5 . . . Drop 12 | . 4 . 6 2 . . Fire 87 | . 21 . 35 16 . 15 Melee . | . . . . . . . Ram 6 | . . . . . . 6 Kick . | . . . . . . . Crush . | . . . . . . . Escape Stasis 65 | . . . . . . 65 Rewire . | . . . . . . . Trap . | . . . . . . . Miscellaneous . | . . . . . . . Route ------- -11/Scrapyard -10/Materials (discovered 3 exits: *Mat x2 / [*Min]) -10/Mines -9/Materials (discovered 2 exits: *Mat / *Min) -9/Mines (discovered 2 exits: *Mat x2) -8/Materials (discovered 2 exits: Sto / Gar) -8/Garrison History --------- Turn | Location | Event 8 | -11/Scrapyard | Discovered new exit (range 16) 98 | -11/Scrapyard | Entered Materials 261 | -10/Materials | Discovered new exit (range 16) 336 | -10/Materials | Build established: Mutant 610 | -10/Materials | Discovered new exit (range 10) 673 | -10/Materials | Discovered new exit (range 12) 714 | -10/Materials | Entered Mines 990 | -10/Mines | Learned Materials emergency access door positions 1014 | -10/Mines | Discovered new exit (range 18) 1058 | -10/Mines | Entered Materials 1058 | -9/Materials | Evolved 2 slots: Utility x2 1690 | -9/Materials | Discovered new exit (range 18) 1855 | -9/Materials | Build established: Scavenger-Mutant 1995 | -9/Materials | Identified exit to Mines 2137 | -9/Materials | Entered Mines 2234 | -9/Mines | Met a Derelict bent on vengeance 2281 | -9/Mines | Assembled infested the area 2666 | -9/Mines | Discovered new exit (range 17) 2965 | -9/Mines | Lost 5 parts (1p2n2w) 3034 | -9/Mines | Received a Mining Laser from a helpful Derelict 3041 | -9/Mines | Build established: Scavenger-Skirmisher 3070 | -9/Mines | Discovered new exit (range 10) 3276 | -9/Mines | Learned location of 1 exit from Materials 3293 | -9/Mines | Found a damaged Exp. Sensor Array with a note attached 3430 | -9/Mines | Entered Materials 3430 | -8/Materials | Evolved 2 slots: Power x1, Utility x1 3431 | -8/Materials | Identified exit to Storage 3458 | -8/Materials | Identified exit to Garrison 3459 | -8/Materials | Entered Garrison 3649 | -8/Garrison | Triggered checkpoint 3680 | -8/Garrison | Core integrity fell below 50% 3704 | -8/Garrison | Lost 4 parts (1p2n1w) 3734 | -8/Garrison | Triggered checkpoint 3861 | -8/Garrison | Core integrity fell below 20% 3868 | -8/Garrison | Destroyed by Y-45 Defender with Beam Rifle Last Messages --------------- 03823_ Field strength at 16. 03824_ Field strength at 10. 03825_ Field strength at 4. 03826_ Stasis field depleted. 03831_ Triggered Alarm Trap. 03831_ An alarm sounds. 03842_ Mni. Grenade Launcher+ destroyed. 03842_ Critical hit (Burn: +37). 03845_ Terrain Scanner destroyed. 03857_ Lgt. Nuclear Core destroyed. 03859_ Slammed into Y-45 Defender. 03862_ Destabilizing: Core damaged (-16). 03863_ Slammed into Y-45 Defender. 03866_ Critical hit (Burn: +37). 03866_ Slammed into Y-45 Defender. 03866_ Destabilizing: System interference. 03866_ Mni. Grenade Launcher+ temporarily disabled. 03866_ Visual Processing Unit temporarily disabled. Map ----- +----------------------------------------------------+ | ######## # # ########?????????????????? | | ##????????????????? | | ^ #????????????????? | | # ## #????????????????? | | ########## # ## # # #????????????????? | | #??????# ### ## ## ##????????????????? | | ######## #?###+## #????????????????? | | # #???? ## ## #### ###???????????????? | | ##### ####?????### ### #### # #???????????????? | | #???# #??????????# #?# # # ##??????????????? | | #???# #??????????# #?# # ##= #??????????????? | | #???# #??????????# ###### ###### ######????? | | #???# #??????????# #????? | | #???# #??????????# #????? | | #???# #??????????######## # ######### #????? | | #???# #?????????????????# # [####??????????????? | | #???# #?????????????????####[%# "#??????????????? | | #???# #??????????????????# "#??????????????? | | #???# #??????????????????# "#??????????????? | | #???# #??????????????????# "#??????????????? | | ##### #??????????????????### # "#??????????????? | | #??????????????????# # ####??????????????? | | #######????????????####?## # ########??????????? | | #??????????????????#!!#?# "#?????????? | | ##?????????????????#!!### #####"T"#?????????? | | #?????????????????# @Y ##????????????????? | | #?????????????????#[[## Y #????????????????? | | ##?????????????????#[[## ##????????????????? | | #??????????????????###### ### #????????????????? | | #???????????????????????####???#????????????????? | | #???????????????????????????????????????????????? | | #???????????????????????????????????????????????? | | #???????????????????????????????????????????????? | | #???????????????????????????????????????????????? | | #???????????????????????????????????????????????? | | #???????????????????????????????????????????????? | | #???????????????????????????????????????????????? | | #???????????????????????????????????????????????? | | ##???????????????????????????????????????????????? | | ?????????????????????????????????????????????????? | | ?????????????????????????????????????????????????? | | ?????????????????????????????????????????????????? | | ?????????????????????????????????????????????????? | | ?????????????????????????????????????????????????? | | ?????????????????????????????????????????????????? | | ?????????????????????????????????????????????????? | | ?????????????????????????????????????????????????? | | | | | | | +----------------------------------------------------+ Best States ------------- Heat Dissipation 31 Energy Generation 14 Energy Capacity 250 Matter Stores 300 Matter Capacity 300 Sight Range 18 Terrain Scan Range 14 Terrain Scan Density 85 Armor Coverage 150 Evasion (%) 50 Recoil Reduction 2 Item Schematics ----------------- None Robot Schematics ------------------ None Fabricated ------------ Nothing Repaired ---------- Nothing Studied --------- Mni. Grenade Launcher | -9/Materials | Hacked Grenade Launcher | -9/Materials | Hacked Datajack | -9/Materials | Hacked Ion Engine | -9/Materials | Hacked Alien Tech Used ----------------- None Achievements -------------- Myspace Challenges ------------ None Game ------ Seed FlakCentriumKatana Manual? 0 Play Time 00:24:44 Cumulative 56.5 hours Start 2026.04.10 @ 05:34:17 End 2026.04.10 @ 06:00:46 Sessions 1 Manual Loads 0 Difficulty Rogue Special Mode None Game No. 81 Rogue 57 Adventurer 24 Explorer 0 Win Type - Total 0 Types 0/0/0/0/0/0/0/0/0/0 Lore% 33 Gallery% 29 Achievement% 25 Wizard Run 0 Options --------- Layout 1 ASCII 0 Keyboard 1 Movement Arrows Keybinds 0 Fullscreen 1 Font 24/Smallcaps Map View 50x35 Zoom Use 0% Tactical HUD 1 Map Filters NONE Filters NONE Steam 1 RUN: 3e636c82-9e9c-4f5f-9ad4-dd6cdb495eab